fUST/lending_fUST_20250602
["ID","MTS","AMOUNT","RATE_DAILY","PERIOD"]
[363711851,1748838634596,-430.0,0.00019079,2]
[363711852,1748838634608,-430.0,0.00019079,2]
[363711853,1748838634621,-430.0,0.00019079,2]
[363711854,1748838634631,-430.0,0.00019079,2]
[363711855,1748838634646,-430.0,0.00019079,2]
[363711856,1748838634658,-430.0,0.00019079,2]
[363711857,1748838634670,-430.0,0.00019079,2]
[363711858,1748838634681,-430.0,0.00019079,2]
[363711859,1748838634693,-430.0,0.00019079,2]
[363711860,1748838634705,-430.0,0.00019079,2]
[363711861,1748838634716,-430.0,0.00019079,2]
[363711862,1748838634728,-430.0,0.00019079,2]
[363711863,1748838634954,-430.0,0.00019079,2]
[363711864,1748838634972,-430.0,0.00019079,2]
[363711865,1748838634982,-430.0,0.00019079,2]
[363711866,1748838634992,-430.0,0.00019079,2]
[363711867,1748838635001,-430.0,0.00019079,2]
[363711868,1748838635012,-430.0,0.00019079,2]
[363711869,1748838635022,-430.0,0.00019079,2]
[363711870,1748838635033,-430.0,0.00019079,2]
[363711871,1748838635042,-651.83,0.00019079,2]
[363711872,1748838635052,-430.0,0.00019079,2]
[363711873,1748838635062,-430.0,0.00019079,2]
[363711874,1748838635072,-430.0,0.00019079,2]
[363711875,1748838635082,-430.0,0.00019079,2]
[363711876,1748838635091,-430.0,0.00019079,2]
[363711877,1748838635101,-430.0,0.00019079,2]
[363711878,1748838635110,-430.0,0.0001908,2]
[363711879,1748838635120,-471.55228999,0.0001908,2]
[363711880,1748838635130,-440.0,0.0001908,2]
[363711881,1748838635139,-449.44507541,0.0001908,2]
[363711882,1748838635149,-430.0,0.0001908,2]
[363711883,1748838635159,-430.0,0.0001908,2]
[363711884,1748838635168,-516.49739776,0.0001908,2]
[363711885,1748838635178,-430.0,0.0001908,2]
[363711886,1748838635188,-430.0,0.0001908,2]
[363711887,1748838635198,-430.0,0.0001908,2]
[363711888,1748838635208,-430.0,0.0001908,2]
[363711889,1748838635219,-430.0,0.0001908,2]
[363711890,1748838635229,-430.0,0.0001908,2]
[363711891,1748838635238,-430.0,0.0001908,2]
[363711892,1748838635248,-430.0,0.0001908,2]
[363711893,1748838635258,-430.0,0.0001908,2]
[363711894,1748838635268,-430.0,0.0001908,2]
[363711895,1748838635279,-430.0,0.0001908,2]
[363711896,1748838635289,-383.0735268,0.0001908,2]
[363711897,1748838635299,-430.0,0.0001908,2]
[363711898,1748838635308,-442.01769276,0.0001908,2]
[363711899,1748838635319,-430.0,0.0001908,2]
[363711900,1748838635329,-438.44883724,0.0001908,2]
[363711901,1748838635340,-430.0,0.0001908,2]
[363711902,1748838635350,-430.0,0.0001908,2]
[363711903,1748838635360,-430.0,0.0001908,2]
[363711904,1748838635370,-430.0,0.0001908,2]
[363711905,1748838635380,-430.0,0.0001908,2]
[363711906,1748838635391,-430.0,0.0001908,2]
[363711907,1748838635402,-430.0,0.0001908,2]
[363711908,1748838635412,-430.0,0.0001908,2]
[363711909,1748838635422,-430.0,0.0001908,2]
[363711910,1748838635432,-328.9900385,0.0001908,2]
[363711911,1748838635442,-430.0,0.0001908,2]
[363711912,1748838635452,-176.5428003,0.0001908,2]
[363711913,1748838635461,-430.0,0.0001908,2]
[363711914,1748838635471,-430.0,0.0001908,2]
[363711915,1748838635480,-430.0,0.0001908,2]
[363711916,1748838635489,-433.90581973,0.0001908,2]
[363711917,1748838635499,-449.96754804,0.0001908,2]
[363711918,1748838635508,-435.16761535,0.0001908,2]
[363711919,1748838635518,-430.0,0.0001908,2]
[363711920,1748838635528,-430.0,0.0001908,2]
[363711921,1748838635537,-430.0,0.0001908,2]
[363711922,1748838635546,-430.0,0.0001908,2]
[363711923,1748838635556,-430.0,0.0001908,2]
[363711924,1748838635566,-430.0,0.0001908,2]
[363711925,1748838635576,-179.98044746,0.0001908,2]
[363711926,1748838635586,-430.0,0.0001908,2]
[363711927,1748838635595,-446.18175245,0.0001908,2]
[363711928,1748838635605,-430.0,0.0001908,2]
[363711929,1748838635615,-430.0,0.0001908,2]
[363711930,1748838635625,-430.0,0.0001908,2]
[363711931,1748838635635,-430.0,0.0001908,2]
[363711932,1748838635647,-430.0,0.0001908,2]
[363711933,1748838635656,-430.0,0.0001908,2]
[363711934,1748838635666,-436.45143021,0.0001908,2]
[363711935,1748838635675,-443.05648516,0.0001908,2]
[363711936,1748838635684,-430.0,0.0001908,2]
[363711937,1748838635693,-430.0,0.0001908,2]
[363711938,1748838635703,-430.0,0.0001908,2]
[363711939,1748838635712,-430.0,0.0001908,2]
[363711940,1748838635722,-437.40038189,0.0001908,2]
[363711941,1748838635731,-430.0,0.0001908,2]
[363711942,1748838635741,-324.88938498,0.0001908,2]
[363711943,1748838635751,-430.0,0.0001908,2]
[363711944,1748838635760,-318.03,0.0001908,2]
[363711945,1748838635770,-430.0,0.0001908,2]
[363711946,1748838635779,-430.0,0.0001908,2]
[363711947,1748838635789,-430.0,0.0001908,2]
[363711948,1748838635798,-430.0,0.0001908,2]
[363711949,1748838635808,-430.0,0.0001908,2]
[363711950,1748838635818,-430.0,0.0001908,2]
[363711951,1748838635828,-440.25124976,0.0001908,2]
[363711952,1748838635837,-430.0,0.0001908,2]
[363711953,1748838635847,-430.0,0.0001908,2]
[363711954,1748838635856,-430.0,0.0001908,2]
[363711955,1748838635865,-430.0,0.00019081,2]
[363711956,1748838635875,-511.29686665,0.00019081,2]
[363711957,1748838635885,-455.06575181,0.00019081,2]
[363711958,1748838635894,-441.96393305,0.00019081,2]
[363711959,1748838635903,-430.0,0.00019081,2]
[363711960,1748838635913,-430.0,0.00019081,2]
[363711961,1748838635921,-430.0,0.00019081,2]
[363711962,1748838635930,-464.47897375,0.00019081,2]
[363711963,1748838635939,-389.21991705,0.00019081,2]
[363711964,1748838635949,-425.14537473,0.00019081,2]
[363711965,1748838635959,-444.50954877,0.00019081,2]
[363711966,1748838635969,-442.37566867,0.00019081,2]
[363711967,1748838635978,-456.6039555,0.00019081,2]
[363711968,1748838635988,-449.90123979,0.00019081,2]
[363711969,1748838635997,-430.0,0.00019081,2]
[363711970,1748838636007,-292.14069134,0.00019081,2]
[363711971,1748838636017,-430.0,0.00019081,2]
[363711972,1748838636026,-442.65590402,0.00019081,2]
[363711973,1748838636036,-430.0,0.00019081,2]
[363711974,1748838636046,-430.0,0.00019081,2]
[363711975,1748838636055,-284.13470896,0.00019081,2]
[363711976,1748838636065,-430.0,0.00019081,2]
[363711977,1748838636075,-432.49014218,0.00019081,2]
[363711978,1748838636085,-442.95234818,0.00019081,2]
[363711979,1748838636094,-430.0,0.00019081,2]
[363711980,1748838636104,-430.0,0.00019081,2]
[363711981,1748838636114,-482.91088288,0.00019081,2]
[363711982,1748838636123,-442.9279037,0.00019081,2]
[363711983,1748838636134,-441.03720612,0.00019081,2]
[363711984,1748838636143,-430.0,0.00019081,2]
[363711985,1748838636154,-438.17845877,0.00019081,2]
[363711986,1748838636163,-432.13039127,0.00019081,2]
[363711987,1748838636173,-447.44944512,0.00019081,2]
[363711988,1748838636183,-297.47618959,0.00019081,2]
[363711989,1748838636194,-441.18660645,0.00019081,2]
[363711990,1748838636203,-448.93282229,0.00019081,2]
[363711991,1748838636213,-430.0,0.00019081,2]
[363711992,1748838636223,-447.42883138,0.00019081,2]
[363711993,1748838636233,-445.05594619,0.00019081,2]
[363711994,1748838636243,-430.0,0.00019081,2]
[363711995,1748838636252,-571.90776366,0.00019081,2]
[363711996,1748838636262,-447.94003266,0.00019081,2]
[363711997,1748838636272,-430.0,0.00019081,2]
[363711998,1748838636281,-493.63482334,0.00019081,2]
[363711999,1748838636291,-438.67374363,0.00019081,2]
[363712000,1748838636301,-435.30604679,0.00019081,2]
[363712001,1748838636310,-378.80662149,0.00019081,2]
[363712002,1748838636321,-437.64540313,0.00019081,2]
[363712003,1748838636331,-441.41648561,0.00019081,2]
[363712004,1748838636341,-435.11897863,0.00019081,2]
[363712005,1748838636351,-557.98194353,0.00019081,2]
[363712006,1748838636361,-414.43050531,0.00019081,2]
[363712007,1748838636371,-430.0,0.00019081,2]
[363712008,1748838636381,-430.0,0.00019081,2]
[363712009,1748838636391,-430.0,0.00019081,2]
[363712010,1748838636400,-410.00407777,0.00019081,2]
[363712011,1748838636409,-430.0,0.00019081,2]
[363712012,1748838636419,-478.44395464,0.00019081,2]
[363712013,1748838636430,-430.0,0.00019081,2]
[363712014,1748838636440,-411.70402427,0.00019081,2]
[363712015,1748838636450,-430.0,0.00019081,2]
[363712016,1748838636460,-485.26782262,0.00019081,2]
[363712017,1748838636469,-430.0,0.00019081,2]
[363712018,1748838636479,-431.80708131,0.00019081,2]
[363712019,1748838636489,-430.0,0.00019081,2]
[363712020,1748838636499,-430.0,0.00019081,2]
[363712021,1748838636508,-440.98633417,0.00019081,2]
[363712022,1748838636518,-439.3641378,0.00019081,2]
[363712023,1748838636528,-440.54061231,0.00019081,2]
[363712024,1748838636538,-430.0,0.00019081,2]
[363712025,1748838636548,-430.0,0.00019081,2]
[363712026,1748838636557,-361.30774894,0.00019081,2]
[363712027,1748838636566,-430.0,0.00019081,2]
[363712028,1748838636576,-430.0,0.00019081,2]
[363712029,1748838636585,-430.0,0.00019081,2]
[363712030,1748838636595,-322.29209987,0.00019081,2]
[363712031,1748838636605,-222.296616,0.00019081,2]
[363712032,1748838636615,-430.0,0.00019081,2]
[363712033,1748838636625,-430.0,0.00019081,2]
[363712034,1748838636638,-430.0,0.00019081,2]
[363712035,1748838636650,-430.0,0.00019081,2]
[363712036,1748838636660,-555.99339746,0.00019081,2]
[363712037,1748838636670,-213.45068498,0.00019081,2]
[363712038,1748838636680,-430.0,0.00019081,2]
[363712039,1748838636691,-430.0,0.00019081,2]
[363712040,1748838636702,-500.0,0.00019084,2]
[363712041,1748838636712,-500.0,0.00019111,2]
[363712042,1748838636723,-500.0,0.00019139,2]
[363712043,1748838636733,-500.0,0.00019166,2]
[363712044,1748838636743,-500.0,0.00019178,2]
[363712045,1748838636753,-500.0,0.00019178,2]
[363712046,1748838636763,-512.77342355,0.00019178,2]
[363712047,1748838636773,-151.0,0.00019178,2]
[363712048,1748838636783,-164.103828,0.00019178,2]
[363712049,1748838636793,-500.0,0.00019194,2]
[363712050,1748838636803,-500.0,0.00019221,2]
[363712051,1748838636814,-156.587,0.00019233,2]
[363712052,1748838636823,-603.43877785,0.00019245,2]
[363712053,1748838636833,-500.0,0.00019248,2]
[363712054,1748838636843,-695.36,0.00019249,2]
[363712055,1748838636852,-1653.17342698,0.00019253,2]
[363712056,1748838636862,-346.0,0.00019276,2]
[363712057,1748838636872,-162.38071901,0.00019288,2]
[363712058,1748838636883,-471.38059154,0.00019351,2]
[363712059,1748838636895,-486.98,0.00019351,2]
[363712060,1748838636906,-430.0,0.00019351,2]
[363712061,1748838636916,-667.56,0.00019351,2]
[363712062,1748838636926,-430.0,0.00019351,2]
[363712063,1748838636936,-643.28,0.00019351,2]
[363712064,1748838636949,-430.0,0.00019351,2]
[363712065,1748838636958,-430.0,0.00019351,2]
[363712066,1748838636968,-430.0,0.00019351,2]
[363712067,1748838636978,-812.28,0.00019351,2]
[363712068,1748838636987,-430.0,0.00019351,2]
[363712069,1748838636998,-431.53,0.00019351,2]
[363712070,1748838637009,-430.0,0.00019351,2]
[363712071,1748838637019,-430.0,0.00019351,2]
[363712072,1748838637029,-430.0,0.00019353,2]
[363712073,1748838637039,-430.0,0.00019353,2]
[363712074,1748838637048,-430.0,0.00019353,2]
[363712075,1748838637057,-430.0,0.00019353,2]
[363712076,1748838637067,-430.0,0.00019353,2]
[363712077,1748838637077,-430.0,0.00019353,2]
[363712078,1748838637087,-430.0,0.00019353,2]
[363712079,1748838637097,-430.0,0.00019353,2]
[363712080,1748838637106,-430.0,0.00019353,2]
[363712081,1748838637115,-430.0,0.00019353,2]
[363712082,1748838637124,-430.0,0.00019353,2]
[363712083,1748838637133,-430.0,0.00019353,2]
[363712084,1748838637142,-430.0,0.00019353,2]
[363712085,1748838637151,-430.0,0.00019353,2]
[363712086,1748838637162,-430.0,0.00019353,2]
[363712087,1748838637172,-440.37215013,0.00019353,2]
[363712088,1748838637182,-430.0,0.00019353,2]
[363712089,1748838637193,-430.0,0.00019353,2]
[363712090,1748838637203,-430.0,0.00019353,2]
[363712091,1748838637212,-430.0,0.00019353,2]
[363712092,1748838637223,-430.0,0.00019353,2]
[363712093,1748838637233,-430.0,0.00019353,2]
[363712094,1748838637243,-430.0,0.00019353,2]
[363712095,1748838637253,-430.0,0.00019353,2]
[363712096,1748838637263,-430.0,0.00019353,2]
[363712097,1748838637272,-430.0,0.00019353,2]
[363712098,1748838637282,-430.0,0.00019353,2]
[363712099,1748838637291,-430.0,0.00019353,2]
[363712100,1748838637301,-651.83,0.00019353,2]
[363712101,1748838637311,-430.0,0.00019353,2]
[363712102,1748838637321,-430.0,0.00019353,2]
[363712103,1748838637331,-430.0,0.00019353,2]
[363712104,1748838637341,-430.0,0.00019353,2]
[363712105,1748838637350,-430.0,0.00019353,2]
[363712106,1748838637360,-430.0,0.00019353,2]
[363712107,1748838637369,-206.20627243,0.00019354,2]
[363712108,1748838637379,-548.20320171,0.00019354,2]
[363712109,1748838637389,-430.0,0.00019354,2]
[363712110,1748838637398,-522.80176838,0.00019354,2]
[363712111,1748838637408,-430.0,0.00019354,2]
[363712112,1748838637418,-430.0,0.00019354,2]
[363712113,1748838637427,-430.0,0.00019354,2]
[363712114,1748838637439,-430.0,0.00019354,2]
[363712115,1748838637449,-430.0,0.00019354,2]
[363712116,1748838637458,-430.0,0.00019354,2]
[363712117,1748838637468,-440.42917571,0.00019354,2]
[363712118,1748838637477,-430.0,0.00019354,2]
[363712119,1748838637487,-466.43586066,0.00019354,2]
[363712120,1748838637496,-558.49557761,0.00019354,2]
[363712121,1748838637506,-444.67390775,0.00019354,2]
[363712122,1748838637515,-430.0,0.00019354,2]
[363712123,1748838637524,-430.0,0.00019354,2]
[363712124,1748838637534,-430.0,0.00019354,2]
[363712125,1748838637543,-430.0,0.00019354,2]
[363712126,1748838637552,-430.0,0.00019354,2]
[363712127,1748838637562,-430.0,0.00019354,2]
[363712128,1748838637571,-446.76484331,0.00019354,2]
[363712129,1748838637581,-430.0,0.00019354,2]
[363712130,1748838637591,-430.0,0.00019354,2]
[363712131,1748838637603,-430.0,0.00019354,2]
[363712132,1748838637613,-430.0,0.00019354,2]
[363712133,1748838637623,-447.23567192,0.00019354,2]
[363712134,1748838637632,-430.0,0.00019354,2]
[363712135,1748838637642,-430.0,0.00019354,2]
[363712136,1748838637652,-430.0,0.00019354,2]
[363712137,1748838637661,-430.0,0.00019354,2]
[363712138,1748838637671,-538.24018298,0.00019354,2]
[363712139,1748838637680,-430.0,0.00019354,2]
[363712140,1748838637689,-430.0,0.00019354,2]
[363712141,1748838637699,-430.0,0.00019354,2]
[363712142,1748838637708,-430.0,0.00019354,2]
[363712143,1748838637717,-212.36,0.00019354,2]
[363712144,1748838637728,-430.0,0.00019354,2]
[363712145,1748838637738,-430.0,0.00019354,2]
[363712146,1748838637748,-447.04212217,0.00019354,2]
[363712147,1748838637757,-447.58325611,0.00019354,2]
[363712148,1748838637767,-361.7488963,0.00019354,2]
[363712149,1748838637778,-430.0,0.00019354,2]
[363712150,1748838637787,-430.0,0.00019354,2]
[363712151,1748838637797,-354.0166995,0.00019354,2]
[363712152,1748838637807,-460.48567903,0.00019354,2]
[363712153,1748838637817,-430.0,0.00019354,2]
[363712154,1748838637827,-430.0,0.00019354,2]
[363712155,1748838637836,-430.0,0.00019354,2]
[363712156,1748838637846,-430.0,0.00019354,2]
[363712157,1748838637855,-430.0,0.00019354,2]
[363712158,1748838637865,-440.50606172,0.00019355,2]
[363712159,1748838637874,-430.0,0.00019355,2]
[363712160,1748838637882,-456.32235231,0.00019355,2]
[363712161,1748838637891,-430.0,0.00019355,2]
[363712162,1748838637899,-249.90228974,0.00019355,2]
[363712164,1748838637908,-376.66228101,0.00019355,2]
[363712165,1748838637918,-430.0,0.00019355,2]
[363712166,1748838637927,-430.0,0.00019355,2]
[363712167,1748838637937,-430.0,0.00019355,2]
[363712168,1748838637946,-430.0,0.00019355,2]
[363712169,1748838637956,-430.0,0.00019355,2]
[363712170,1748838637965,-561.71104593,0.00019355,2]
[363712171,1748838637977,-462.65232285,0.00019355,2]
[363712172,1748838637986,-430.0,0.00019355,2]
[363712173,1748838637996,-430.0,0.00019355,2]
[363712178,1748838638122,-353.18644927,0.00019355,2]
[363712180,1748838638135,-430.0,0.00019355,2]
[363712182,1748838638145,-430.0,0.00019355,2]
[363712184,1748838638155,-216.6274282,0.00019355,2]
[363712186,1748838638164,-433.89178421,0.00019355,2]
[363712188,1748838638173,-391.77419182,0.00019355,2]
[363712190,1748838638183,-430.0,0.00019355,2]
[363712192,1748838638193,-430.0,0.00019355,2]
[363712194,1748838638202,-471.4,0.00019355,2]
[363712196,1748838638212,-490.05046205,0.00019355,2]
[363712197,1748838638223,-430.0,0.00019355,2]
[363712198,1748838638233,-522.47391769,0.00019355,2]
[363712199,1748838638243,-430.0,0.00019355,2]
[363712200,1748838638252,-430.0,0.00019355,2]
[363712202,1748838638263,-430.0,0.00019355,2]
[363712205,1748838638272,-430.0,0.00019355,2]
[363712207,1748838638281,-500.0,0.00019411,2]
[363712209,1748838638291,-500.0,0.00019411,2]
[363712210,1748838638300,-500.0,0.00019411,2]
[363712211,1748838638310,-603.43877785,0.00019417,2]
[363712212,1748838638322,-500.0,0.00019422,2]
[363712213,1748838638333,-603.43877785,0.0001959,2]
[363712214,1748838638345,-430.0,0.00019625,2]
[363712215,1748838638355,-667.56,0.00019625,2]
[363712216,1748838638365,-430.0,0.00019625,2]
[363712217,1748838638375,-643.28,0.00019625,2]
[363712218,1748838638384,-430.0,0.00019625,2]
[363712219,1748838638394,-430.0,0.00019625,2]
[363712220,1748838638403,-430.0,0.00019625,2]
[363712221,1748838638413,-812.28,0.00019625,2]
[363712222,1748838638422,-430.0,0.00019625,2]
[363712223,1748838638432,-431.53,0.00019625,2]
[363712224,1748838638442,-430.0,0.00019625,2]
[363712225,1748838638451,-430.0,0.00019625,2]
[363712226,1748838638461,-430.0,0.00019627,2]
[363712227,1748838638472,-430.0,0.00019627,2]
[363712228,1748838638481,-430.0,0.00019627,2]
[363712229,1748838638490,-430.0,0.00019627,2]
[363712230,1748838638500,-430.0,0.00019627,2]
[363712231,1748838638510,-430.0,0.00019627,2]
[363712232,1748838638520,-430.0,0.00019627,2]
[363712233,1748838638529,-430.0,0.00019627,2]
[363712234,1748838638539,-430.0,0.00019627,2]
[363712235,1748838638549,-430.0,0.00019627,2]
[363712236,1748838638558,-430.0,0.00019627,2]
[363712237,1748838638569,-430.0,0.00019627,2]
[363712238,1748838638579,-430.0,0.00019627,2]
[363712239,1748838638589,-430.0,0.00019627,2]
[363712240,1748838638599,-430.0,0.00019627,2]
[363712241,1748838638608,-430.0,0.00019627,2]
[363712242,1748838638618,-156.70973206,0.00019627,2]
[363712243,1748838638628,-430.0,0.00019627,2]
[363712244,1748838638640,-430.0,0.00019627,2]
[363712245,1748838638650,-247.19728997,0.00019627,2]
[363712246,1748838638659,-430.0,0.00019627,2]
[363712247,1748838638669,-430.0,0.00019627,2]
[363712248,1748838638678,-430.0,0.00019627,2]
[363712249,1748838638689,-651.83,0.00019627,2]
[363712250,1748838638699,-430.0,0.00019627,2]
[363712251,1748838638709,-430.0,0.00019627,2]
[363712252,1748838638720,-430.0,0.00019627,2]
[363712253,1748838638731,-430.0,0.00019627,2]
[363712254,1748838638741,-430.0,0.00019628,2]
[363712255,1748838638752,-430.0,0.00019628,2]
[363712256,1748838638765,-430.0,0.00019628,2]
[363712257,1748838638778,-430.0,0.00019628,2]
[363712258,1748838638787,-158.42606361,0.00019628,2]
[363712259,1748838638797,-237.90370609,0.00019628,2]
[363712260,1748838638807,-430.0,0.00019628,2]
[363712261,1748838638817,-430.0,0.00019628,2]
[363712262,1748838638827,-181.20095711,0.00019628,2]
[363712263,1748838638837,-522.81372255,0.00019628,2]
[363712264,1748838638847,-430.0,0.00019628,2]
[363712265,1748838638857,-430.0,0.00019628,2]
[363712266,1748838638867,-541.66611936,0.00019628,2]
[363712267,1748838638876,-430.0,0.00019628,2]
[363712268,1748838638886,-403.80874488,0.00019628,2]
[363712269,1748838638896,-430.0,0.00019628,2]
[363712270,1748838638906,-78.52417077,0.00019628,2]
[363712271,1748838639196,-351.27555648,0.00018886,2]
[363712272,1748838639210,-4648.72444352,0.00018886,2]
[363712273,1748838639222,-430.0,0.00019351,2]
[363712274,1748838639232,-430.0,0.00019625,2]
[363712275,1748838639242,-351.47582923,0.00019628,2]
[363712276,1748838639252,-450.01621852,0.00019628,2]
[363712277,1748838639262,-430.0,0.00019628,2]
[363712278,1748838639271,-356.81100998,0.00019628,2]
[363712279,1748838639281,-430.0,0.00019628,2]
[363712280,1748838639290,-430.0,0.00019628,2]
[363712281,1748838639300,-430.0,0.00019628,2]
[363712282,1748838639311,-430.0,0.00019628,2]
[363712283,1748838639321,-419.3778192,0.00019628,2]
[363712284,1748838639333,-79.79519258,0.00019628,2]
[363712285,1748838639343,-430.0,0.00019628,2]
[363712286,1748838639352,-430.0,0.00019628,2]
[363712287,1748838639362,-430.0,0.00019628,2]
[363712288,1748838639371,-550.56691079,0.00019628,2]
[363712289,1748838639381,-467.10276651,0.00019628,2]
[363712290,1748838639391,-283.14183753,0.00019629,2]
[363712291,1748838639401,-370.83257723,0.00019629,2]
[363712292,1748838639411,-446.25982861,0.00019629,2]
[363712293,1748838639420,-430.0,0.00019629,2]
[363712294,1748838639429,-437.96947493,0.00019629,2]
[363712295,1748838639439,-453.58980271,0.00019629,2]
[363712296,1748838639448,-430.0,0.00019629,2]
[363712297,1748838639458,-430.0,0.00019629,2]
[363712298,1748838639467,-217.78,0.00019629,2]
[363712299,1748838639478,-430.0,0.00019629,2]
[363712300,1748838639487,-469.30082132,0.00019629,2]
[363712301,1748838639497,-430.0,0.00019629,2]
[363712302,1748838639507,-471.89483949,0.00019629,2]
[363712303,1748838639517,-430.0,0.00019629,2]
[363712304,1748838639527,-240.825,0.00019646,2]
[363712305,1748838639536,-603.43877785,0.00019762,2]
[363712306,1748838639545,-430.0,0.00019899,2]
[363712307,1748838639555,-667.56,0.00019899,2]
[363712308,1748838639564,-430.0,0.00019899,2]
[363712309,1748838639574,-643.28,0.00019899,2]
[363712310,1748838639583,-430.0,0.00019899,2]
[363712311,1748838639593,-430.0,0.00019899,2]
[363712312,1748838639603,-812.28,0.00019899,2]
[363712313,1748838639614,-430.0,0.00019899,2]
[363712314,1748838639626,-430.0,0.00019899,2]
[363712315,1748838639638,-431.53,0.00019899,2]
[363712316,1748838639648,-430.0,0.00019899,2]
[363712317,1748838639657,-430.0,0.00019899,2]
[363712318,1748838639666,-430.0,0.00019899,2]
[363712319,1748838639676,-430.0,0.00019901,2]
[363712320,1748838639685,-430.0,0.00019901,2]
[363712321,1748838639694,-430.0,0.00019901,2]
[363712322,1748838639704,-430.0,0.00019901,2]
[363712323,1748838639713,-430.0,0.00019901,2]
[363712324,1748838639723,-213.86769286,0.00019901,2]
[363712325,1748838639733,-430.0,0.00019901,2]
[363712326,1748838639743,-430.0,0.00019901,2]
[363712327,1748838639753,-430.0,0.00019901,2]
[363712328,1748838639764,-430.0,0.00019901,2]
[363712329,1748838639773,-430.0,0.00019901,2]
[363712330,1748838639782,-430.0,0.00019901,2]
[363712331,1748838639792,-430.0,0.00019901,2]
[363712332,1748838639802,-430.0,0.00019901,2]
[363712333,1748838639812,-430.0,0.00019901,2]
[363712334,1748838639822,-430.0,0.00019901,2]
[363712335,1748838639832,-430.0,0.00019901,2]
[363712336,1748838639842,-651.83,0.00019901,2]
[363712337,1748838639851,-207.6729744,0.00019901,2]
[363712338,1748838639862,-430.0,0.00019901,2]
[363712339,1748838639871,-223.25,0.00019901,2]
[363712340,1748838639881,-340.11,0.00019901,2]
[363712341,1748838639890,-430.0,0.00019902,2]
[363712342,1748838639900,-430.0,0.00019902,2]
[363712343,1748838639910,-273.16251043,0.00019902,2]
[363712344,1748838639920,-430.0,0.00019902,2]
[363712345,1748838639931,-430.0,0.00019902,2]
[363712346,1748838639940,-430.0,0.00019902,2]
[363712347,1748838639951,-532.64261384,0.00019902,2]
[363712348,1748838639962,-430.0,0.00019902,2]
[363712349,1748838639972,-430.0,0.00019902,2]
[363712350,1748838639981,-430.0,0.00019902,2]
[363712351,1748838639991,-430.0,0.00019902,2]
[363712352,1748838640001,-430.0,0.00019902,2]
[363712353,1748838640011,-430.0,0.00019902,2]
[363712354,1748838640023,-430.0,0.00019902,2]
[363712355,1748838640060,-430.0,0.00019902,2]
[363712356,1748838640071,-430.0,0.00019902,2]
[363712357,1748838640080,-351.73418202,0.00019902,2]
[363712358,1748838640090,-430.0,0.00019902,2]
[363712359,1748838640101,-430.0,0.00019903,2]
[363712360,1748838640111,-273.01488737,0.00019903,2]
[363712361,1748838640121,-497.7642072,0.00019903,2]
[363712362,1748838640131,-464.17164102,0.00019903,2]
[363712364,1748838640141,-470.16860411,0.00019903,2]
[363712366,1748838640151,-603.43877785,0.00019934,2]
[363712367,1748838640160,-1000.0,0.00019959,2]
[363712368,1748838640170,-1000.0,0.00019959,2]
[363712369,1748838640180,-439.14188413,0.0001997,2]
[363712370,1748838640190,-36904.37225909,0.0001999,2]
[363712372,1748838640202,-471.54538709,0.0001999,2]